fUSD/lending_fUSD_20250417
["ID","MTS","AMOUNT","RATE_DAILY","PERIOD"]
[358232522,1744859444727,-500.0,0.00052054,120]
[358232523,1744859444736,-2104.71,0.00052054,120]
[358232524,1744859444746,-500.0,0.00052054,120]
[358232525,1744859444757,-500.0,0.00052054,120]
[358232526,1744859444768,-500.0,0.00052054,120]
[358232527,1744859444777,-500.0,0.00052054,120]
[358232528,1744859444786,-500.0,0.00052054,120]
[358232529,1744859444796,-504.48382921,0.00052054,120]
[358232530,1744859444808,-500.0,0.00052054,120]
[358232531,1744859444818,-500.0,0.00052054,120]
[358232532,1744859444828,-1442.06,0.00052054,120]
[358232533,1744859444839,-500.0,0.00052054,120]
[358232534,1744859444847,-513.56418604,0.00052054,120]
[358232535,1744859444857,-1567.02,0.00052054,120]
[358232536,1744859444866,-466.75677862,0.00052054,120]
[358232537,1744859444875,-700.29,0.00052054,120]
[358232538,1744859444885,-500.0,0.00052054,120]
[358232539,1744859444894,-500.0,0.00052054,120]
[358232540,1744859444903,-416.17172615,0.00052054,120]
[358232541,1744859444913,-500.0,0.00052054,120]
[358232542,1744859444921,-500.0,0.00052054,120]
[358232543,1744859444930,-500.0,0.00052054,120]
[358232544,1744859444940,-500.0,0.00052054,120]
[358232545,1744859444949,-500.0,0.00052054,120]
[358232546,1744859444958,-577.58,0.00052054,120]
[358232547,1744859444967,-519.33257138,0.00052054,120]
[358232548,1744859444978,-1558.62,0.00052054,120]
[358232549,1744859444987,-500.0,0.00052054,120]
[358232550,1744859444996,-500.0,0.00052054,120]
[358232551,1744859445005,-500.0,0.00052054,120]
[358232552,1744859445015,-500.0,0.00052054,120]
[358232553,1744859445024,-500.0,0.00052054,120]
[358232554,1744859445033,-500.0,0.00052054,120]
[358232555,1744859445043,-513.67187265,0.00052054,120]
[358232556,1744859445052,-156.74499104,0.00052054,120]
[358232557,1744859445062,-500.0,0.00052054,120]
[358232558,1744859445071,-1744.51,0.00052054,120]
[358232559,1744859445080,-550.92811403,0.00052054,120]
[358232560,1744859445089,-500.0,0.00052054,120]
[358232561,1744859445098,-516.92356699,0.00052054,120]
[358232562,1744859445107,-500.0,0.00052054,120]
[358232563,1744859445117,-1604.29,0.00052054,120]
[358232564,1744859445128,-500.0,0.00052054,120]
[358232565,1744859445138,-728.74,0.00052054,2]
[358232566,1744859445148,-1082.35,0.00052054,120]
[358232567,1744859445158,-1821.5,0.00052054,120]
[358232568,1744859445167,-500.0,0.00052054,120]
[358232569,1744859445176,-508.09045595,0.00052054,120]
[358232570,1744859445185,-500.0,0.00052054,120]
[358232571,1744859445194,-500.0,0.00052054,120]
[358232572,1744859445204,-592.98,0.00052054,120]
[358232573,1744859445213,-500.0,0.00052054,120]
[358232574,1744859445222,-276.27223096,0.00052054,120]
[358232575,1744859445231,-500.0,0.00052054,120]
[358232576,1744859445240,-1304.14,0.00052054,120]
[358232577,1744859445250,-500.0,0.00052054,120]
[358232578,1744859445259,-500.0,0.00052054,120]
[358232579,1744859445267,-500.0,0.00052054,120]
[358232580,1744859445277,-939.69,0.00052054,120]
[358232581,1744859445286,-500.0,0.00052054,120]
[358232582,1744859445295,-500.0,0.00052054,120]
[358232583,1744859445304,-783.13,0.00052054,120]
[358232584,1744859445314,-585.92160911,0.00052054,120]
[358232585,1744859445323,-513.04226137,0.00052054,120]
[358232586,1744859445333,-643.58,0.00052054,120]
[358232587,1744859445342,-500.0,0.00052054,120]
[358232588,1744859445352,-680.95,0.00052054,120]
[358232589,1744859445362,-594.11568915,0.00052054,120]
[358232590,1744859445371,-500.0,0.00052054,120]
[358232591,1744859445380,-500.0,0.00052054,120]
[358232592,1744859445390,-1500.12,0.00052054,120]
[358232594,1744859445399,-723.61,0.00052054,30]
[358232595,1744859445408,-500.0,0.00052054,120]
[358232597,1744859445418,-508.29632255,0.00052054,120]
[358232599,1744859445427,-1091.91,0.00052054,120]
[358232601,1744859445436,-500.0,0.00052054,120]
[358232603,1744859445446,-500.0,0.00052054,120]
[358232605,1744859445455,-500.0,0.00052054,120]
[358232607,1744859445464,-1077.68,0.00052054,120]
[358232609,1744859445475,-500.0,0.00052054,120]
[358232610,1744859445485,-500.0,0.00052054,120]
[358232611,1744859445495,-1580.31,0.00052054,120]
[358232612,1744859445504,-1511.55,0.00052054,120]
[358232613,1744859445514,-500.0,0.00052054,120]
[358232614,1744859445523,-520.26694124,0.00052054,120]
[358232615,1744859445533,-500.0,0.00052054,120]
[358232616,1744859445541,-500.0,0.00052054,120]
[358232617,1744859445550,-2935.82,0.00052054,120]
[358232618,1744859445560,-501.63412183,0.00052054,2]
[358232619,1744859445569,-893.5,0.00052054,120]
[358232620,1744859445579,-2038.43,0.00052054,120]
[358232621,1744859445589,-536.69040452,0.00052054,120]
[358232622,1744859445598,-500.0,0.00052054,120]
[358232623,1744859445607,-500.0,0.00052054,120]
[358232624,1744859445616,-502.06607639,0.00052054,120]
[358232625,1744859445625,-654.13,0.00052054,120]
[358232626,1744859445634,-500.0,0.00052054,120]
[358232627,1744859445643,-512.69207202,0.00052054,120]
[358232628,1744859445652,-500.0,0.00052054,120]
[358232629,1744859445662,-1124.29,0.00052054,120]
[358232630,1744859445671,-743.33,0.00052054,120]
[358232631,1744859445680,-801.4,0.00052054,120]
[358232632,1744859445689,-1000.0,0.00052054,120]
[358232633,1744859445699,-500.0,0.00052054,120]
[358232634,1744859445709,-501.6,0.00052054,120]
[358232635,1744859445718,-176.73715815,0.00052054,120]
[358232636,1744859445727,-500.0,0.00052054,120]
[358232637,1744859445737,-584.31090879,0.00052054,120]
[358232638,1744859445746,-622.14,0.00052054,120]
[358232639,1744859445756,-2318.81,0.00052054,120]
[358232640,1744859445764,-2000.0,0.00052054,120]
[358232641,1744859445773,-1007.92,0.00052054,120]
[358232642,1744859445783,-500.0,0.00052054,120]
[358232643,1744859445792,-2484.57,0.00052054,120]
[358232644,1744859445801,-500.0,0.00052054,120]
[358232645,1744859445814,-500.0,0.00052054,120]
[358232646,1744859445824,-239.62106225,0.00052054,120]
[358232647,1744859445833,-500.0,0.00052054,120]
[358232648,1744859445843,-500.0,0.00052054,120]
[358232649,1744859445853,-500.0,0.00052054,120]
[358232650,1744859445861,-500.0,0.00052054,120]
[358232651,1744859445871,-500.0,0.00052054,120]
[358232652,1744859445881,-500.0,0.00052054,120]
[358232653,1744859445890,-500.0,0.00052054,120]
[358232654,1744859445899,-500.0,0.00052054,120]
[358232655,1744859445909,-500.0,0.00052054,120]
[358232656,1744859445918,-500.0,0.00052054,120]
[358232657,1744859445928,-500.0,0.00052054,120]
[358232658,1744859445936,-2749.98,0.00052054,120]
[358232659,1744859445944,-500.0,0.00052054,120]
[358232660,1744859445953,-500.0,0.00052054,120]
[358232661,1744859445962,-500.0,0.00052054,120]
[358232662,1744859445971,-500.0,0.00052054,120]
[358232663,1744859445981,-814.93,0.00052054,120]
[358232664,1744859445990,-2023.1,0.00052054,120]
[358232665,1744859446000,-500.0,0.00052054,120]
[358232666,1744859446010,-500.0,0.00052054,120]
[358232667,1744859446020,-500.0,0.00052054,120]
[358232668,1744859446029,-500.0,0.00052054,120]
[358232669,1744859446039,-500.0,0.00052054,120]
[358232670,1744859446048,-500.0,0.00052054,120]
[358232671,1744859446058,-500.0,0.00052054,120]
[358232672,1744859446068,-879.96,0.00052054,120]
[358232673,1744859446077,-500.0,0.00052054,120]
[358232674,1744859446086,-1587.84,0.00052054,120]
[358232675,1744859446095,-500.0,0.00052054,120]
[358232676,1744859446105,-550.02369566,0.00052054,120]
[358232678,1744859446115,-500.0,0.00052054,120]
[358232680,1744859446125,-500.0,0.00052054,120]
[358232682,1744859446134,-539.29,0.00052054,120]
[358232684,1744859446143,-936.18,0.00052054,120]
[358232686,1744859446153,-508.60245774,0.00052054,120]
[358232688,1744859446162,-500.0,0.00052054,120]
[358232690,1744859446171,-500.0,0.00052054,120]
[358232692,1744859446180,-500.0,0.00052054,120]
[358232694,1744859446189,-500.0,0.00052054,120]
[358232696,1744859446199,-500.0,0.00052054,120]
[358232698,1744859446208,-503.569595,0.00052054,120]
[358232700,1744859446217,-500.0,0.00052054,120]
[358232702,1744859446227,-500.0,0.00052054,120]
[358232704,1744859446236,-1973.98,0.00052054,120]
[358232705,1744859446245,-1057.57,0.00052054,120]
[358232708,1744859446254,-571.06,0.00052054,120]
[358232710,1744859446263,-1316.81,0.00052054,120]
[358232713,1744859446273,-500.0,0.00052054,120]
[358232715,1744859446283,-500.0,0.00052054,120]
[358232717,1744859446292,-989.05,0.00052054,120]
[358232718,1744859446302,-500.0,0.00052054,120]
[358232719,1744859446315,-696.52,0.00052054,120]
[358232720,1744859446325,-1214.35,0.00052054,120]
[358232721,1744859446334,-500.0,0.00052054,120]
[358232722,1744859446343,-500.0,0.00052054,120]
[358232723,1744859446353,-500.0,0.00052054,120]
[358232724,1744859446363,-500.0,0.00052054,60]
[358232725,1744859446373,-2628.2,0.00052054,120]
[358232726,1744859446383,-500.0,0.00052054,120]
[358232727,1744859446392,-1009.19,0.00052054,120]
[358232728,1744859446401,-550.89,0.00052054,120]
[358232729,1744859446411,-1105.39,0.00052054,118]
[358232730,1744859446421,-500.0,0.00052054,120]
[358232731,1744859446430,-505.41864696,0.00052054,120]
[358232732,1744859446440,-508.5847337,0.00052054,120]
[358232733,1744859446449,-794.25,0.00052054,120]
[358232734,1744859446458,-978.75,0.00052054,120]
[358232735,1744859446468,-500.0,0.00052054,120]
[358232736,1744859446477,-500.0,0.00052054,120]
[358232737,1744859446487,-500.0,0.00052054,120]
[358232738,1744859446496,-931.1,0.00052054,120]
[358232739,1744859446506,-548.86,0.00052054,120]
[358232740,1744859446516,-504.84125127,0.00052054,120]
[358232741,1744859446525,-1868.28,0.00052054,120]
[358232742,1744859446535,-1244.71,0.00052054,120]
[358232743,1744859446545,-553.19203632,0.00052054,120]
[358232744,1744859446556,-179.93575151,0.00052054,120]
[358232745,1744859446565,-500.0,0.00052054,120]
[358232746,1744859446574,-514.98675273,0.00052054,120]
[358232747,1744859446584,-500.0,0.00052054,120]
[358232748,1744859446594,-857.75,0.00052054,120]
[358232749,1744859446604,-500.0,0.00052054,120]
[358232750,1744859446613,-1035.66,0.00052054,120]
[358232751,1744859446623,-520.11086262,0.00052054,120]
[358232752,1744859446631,-500.0,0.00052054,120]
[358232753,1744859446640,-546.35,0.00052054,120]
[358232754,1744859446650,-567.37117004,0.00052054,120]
[358232755,1744859446659,-637.28,0.00052054,120]
[358232756,1744859446668,-500.0,0.00052054,120]
[358232757,1744859446678,-500.0,0.00052054,120]
[358232758,1744859446687,-500.0,0.00052054,120]
[358232759,1744859446697,-500.0,0.00052054,120]
[358232760,1744859446706,-1129.53,0.00052054,120]
[358232761,1744859446715,-500.0,0.00052054,120]
[358232762,1744859446725,-510.34966364,0.00052054,120]
[358232763,1744859446735,-2601.57,0.00052054,120]
[358232764,1744859446745,-209.25941191,0.00052054,120]
[358232765,1744859446755,-539.28,0.00052054,120]
[358232766,1744859446765,-500.0,0.00052054,120]
[358232767,1744859446775,-500.0,0.00052054,120]
[358232768,1744859446784,-500.0,0.00052054,120]
[358232769,1744859446795,-500.0,0.00052054,120]
[358232770,1744859446805,-500.0,0.00052054,120]
[358232771,1744859446818,-500.0,0.00052054,120]
[358232772,1744859446828,-500.0,0.00052054,120]
[358232773,1744859446838,-500.0,0.00052054,120]
[358232774,1744859446848,-1680.93,0.00052054,120]
[358232775,1744859446859,-944.39,0.00052054,120]
[358232776,1744859446869,-912.04,0.00052054,120]
[358232777,1744859446879,-665.35,0.00052054,120]
[358232778,1744859446889,-859.32,0.00052054,120]
[358232779,1744859446899,-500.0,0.00052054,120]
[358232780,1744859446909,-500.0,0.00052054,120]
[358232781,1744859446919,-575.89,0.00052054,120]
[358232782,1744859446929,-631.55,0.00052054,120]
[358232783,1744859446939,-500.0,0.00052054,120]
[358232784,1744859446949,-528.03,0.00052054,120]
[358232785,1744859446959,-504.8676897,0.00052054,120]
[358232786,1744859446968,-500.0,0.00052054,120]
[358232787,1744859446979,-504.19453446,0.00052054,120]
[358232788,1744859446989,-717.25,0.00052054,120]
[358232789,1744859446999,-625.89554947,0.00052054,120]
[358232790,1744859447009,-500.0,0.00052054,120]
[358232791,1744859447019,-585.76,0.00052054,120]
[358232792,1744859447029,-3542.02,0.00052054,120]
[358232793,1744859447039,-778.58,0.00052054,120]
[358232794,1744859447049,-346.12694229,0.00052054,20]
[358232795,1744859447060,-500.0,0.00052054,120]
[358232796,1744859447070,-500.0,0.00052054,120]
[358232797,1744859447080,-504.4025027,0.00052054,120]
[358232798,1744859447090,-511.96145209,0.00052054,120]
[358232799,1744859447099,-500.0,0.00052054,120]
[358232800,1744859447109,-500.0,0.00052054,120]
[358232801,1744859447119,-3080.45,0.00052054,120]
[358232802,1744859447129,-1436.82,0.00052054,120]
[358232803,1744859447138,-1064.0,0.00052054,120]
[358232804,1744859447148,-1080.57,0.00052054,120]
[358232805,1744859447158,-812.96,0.00052054,120]
[358232806,1744859447167,-2824.48,0.00052054,120]
[358232807,1744859447177,-517.68022083,0.00052054,60]
[358232808,1744859447188,-1368.25,0.00052054,120]
[358232809,1744859447200,-500.0,0.00052054,120]
[358232810,1744859447211,-1089.6,0.00052054,120]
[358232811,1744859447221,-500.0,0.00052054,120]
[358232812,1744859447231,-1000.0,0.00052054,120]
[358232813,1744859447241,-500.0,0.00052054,120]
[358232814,1744859447250,-500.0,0.00052054,120]
[358232815,1744859447262,-500.0,0.00052054,120]
[358232816,1744859447271,-500.0,0.00052054,120]
[358232817,1744859447281,-1362.51,0.00052054,120]
[358232818,1744859447291,-607.4,0.00052054,120]
[358232819,1744859447301,-535.76,0.00052054,120]
[358232820,1744859447312,-983.28,0.00052054,120]
[358232821,1744859447322,-500.0,0.00052054,120]
[358232822,1744859447332,-1353.38,0.00052054,120]
[358232823,1744859447342,-1577.42,0.00052054,120]
[358232824,1744859447351,-500.0,0.00052054,120]
[358232825,1744859447361,-587.05,0.00052054,120]
[358232826,1744859447371,-500.0,0.00052054,120]
[358232827,1744859447381,-500.0,0.00052054,120]
[358232828,1744859447391,-569.54958801,0.00052054,120]
[358232829,1744859447401,-1440.88,0.00052054,120]
[358232830,1744859447411,-503.21817737,0.00052054,120]
[358232831,1744859447421,-1190.15,0.00052054,120]
[358232832,1744859447431,-500.0,0.00052054,120]
[358232833,1744859447440,-984.85,0.00052054,120]
[358232834,1744859447449,-503.91280715,0.00052054,120]
[358232835,1744859447459,-2797.85,0.00052054,120]
[358232836,1744859447469,-812.56,0.00052054,120]
[358232837,1744859447480,-772.92,0.00052054,120]
[358232838,1744859447490,-500.0,0.00052054,120]
[358232839,1744859447500,-1374.09,0.00052054,120]
[358232840,1744859447509,-500.0,0.00052054,120]
[358232841,1744859447519,-500.0,0.00052054,120]
[358232842,1744859447529,-500.0,0.00052054,120]
[358232843,1744859447539,-500.0,0.00052054,120]
[358232844,1744859447552,-164.45446019,0.00052073,10]
[358232845,1744859447563,-500.0,0.00052073,10]
[358232846,1744859447573,-161.26961405,0.00052073,10]
[358232847,1744859447583,-1105.23753664,0.00052086,31]
[358232848,1744859447592,-2000.0,0.000521,2]
[358232849,1744859447602,-6424.23440501,0.00052105,15]
[358232850,1744859447611,-1608.58092417,0.00052114,15]
[358232851,1744859447621,-19011.9863844,0.00052147,4]
[358232852,1744859447631,-150.0,0.00052194,7]
[358232853,1744859447640,-150.0,0.00052202,7]
[358232854,1744859447650,-19011.9863844,0.00052214,4]
[358232855,1744859447660,-1105.23753664,0.00052217,31]
[358232856,1744859447669,-611.93322117,0.00052219,29]
[358232857,1744859447679,-153.0,0.00052224,60]
[358232858,1744859447689,-153.0,0.00052224,60]
[358232859,1744859447699,-153.0,0.00052224,60]
[358232860,1744859447709,-153.0,0.00052224,60]
[358232861,1744859447719,-153.0,0.00052224,60]
[358232862,1744859447728,-153.0,0.00052224,60]
[358232863,1744859447739,-153.0,0.00052224,60]
[358232864,1744859447748,-153.0,0.00052224,60]
[358232865,1744859447758,-153.0,0.00052224,60]
[358232866,1744859447768,-153.0,0.00052224,60]
[358232867,1744859447778,-153.0,0.00052224,60]
[358232868,1744859447787,-153.0,0.00052224,60]
[358232869,1744859447797,-153.0,0.00052224,60]
[358232870,1744859447809,-153.0,0.00052224,60]
[358232871,1744859447818,-153.0,0.00052224,60]
[358232872,1744859447828,-153.0,0.00052224,60]
[358232873,1744859447838,-153.0,0.00052224,60]
[358232874,1744859447849,-153.0,0.00052224,60]
[358232875,1744859447859,-153.0,0.00052224,60]
[358232876,1744859447869,-153.0,0.00052224,60]
[358232877,1744859447879,-153.0,0.00052224,60]
[358232878,1744859447889,-153.0,0.00052224,60]
[358232879,1744859447899,-153.0,0.00052224,60]
[358232880,1744859447909,-153.0,0.00052224,60]
[358232881,1744859447919,-153.0,0.00052224,60]
[358232882,1744859447929,-153.0,0.00052224,60]
[358232883,1744859447939,-153.0,0.00052224,60]
[358232884,1744859447949,-153.0,0.00052224,60]
[358232885,1744859447959,-153.0,0.00052224,60]
[358232886,1744859447969,-153.0,0.00052224,60]
[358232887,1744859447979,-153.0,0.00052224,60]
[358232888,1744859447988,-153.0,0.00052224,60]
[358232889,1744859447998,-153.0,0.00052224,60]
[358232890,1744859448008,-153.0,0.00052224,60]
[358232891,1744859448018,-153.0,0.00052224,60]
[358232892,1744859448028,-153.0,0.00052224,60]
[358232893,1744859448038,-153.0,0.00052224,60]
[358232894,1744859448049,-153.0,0.00052224,60]
[358232895,1744859448060,-153.0,0.00052224,60]
[358232896,1744859448071,-153.0,0.00052224,60]
[358232897,1744859448082,-153.0,0.00052224,60]
[358232898,1744859448093,-153.0,0.00052224,60]
[358232899,1744859448103,-153.0,0.00052224,60]
[358232900,1744859448114,-153.0,0.00052224,60]
[358232901,1744859448125,-153.0,0.00052224,60]
[358232902,1744859448135,-153.0,0.00052224,60]
[358232903,1744859448145,-153.0,0.00052224,60]
[358232904,1744859448155,-153.0,0.00052224,60]
[358232905,1744859448164,-153.0,0.00052224,60]
[358232906,1744859448174,-153.0,0.00052224,60]
[358232907,1744859448184,-153.0,0.00052224,60]
[358232908,1744859448194,-153.0,0.00052224,60]
[358232909,1744859448204,-153.0,0.00052224,60]
[358232910,1744859448214,-153.0,0.00052224,60]
[358232911,1744859448224,-153.0,0.00052224,60]
[358232912,1744859448234,-153.0,0.00052224,60]
[358232913,1744859448244,-153.0,0.00052224,60]
[358232914,1744859448254,-153.0,0.00052224,60]
[358232915,1744859448264,-153.0,0.00052224,60]
[358232916,1744859448273,-153.0,0.00052224,60]
[358232917,1744859448283,-153.0,0.00052224,60]
[358232918,1744859448293,-153.0,0.00052224,60]
[358232919,1744859448304,-153.0,0.00052224,60]
[358232920,1744859448315,-153.0,0.00052224,60]
[358232921,1744859448326,-153.0,0.00052224,60]
[358232922,1744859448336,-153.0,0.00052224,60]
[358232923,1744859448347,-153.0,0.00052224,60]
[358232924,1744859448358,-153.0,0.00052224,60]
[358232925,1744859448369,-153.0,0.00052224,60]
[358232926,1744859448380,-153.0,0.00052224,60]
[358232927,1744859448390,-153.0,0.00052224,60]
[358232928,1744859448401,-153.0,0.00052224,60]
[358232929,1744859448413,-153.0,0.00052224,60]
[358232930,1744859448423,-153.0,0.00052224,60]
[358232931,1744859448434,-153.0,0.00052224,60]
[358232932,1744859448444,-153.0,0.00052224,60]
[358232933,1744859448454,-153.0,0.00052224,60]
[358232934,1744859448466,-153.0,0.00052224,60]
[358232935,1744859448477,-153.0,0.00052224,60]
[358232936,1744859448488,-153.0,0.00052224,60]
[358232937,1744859448498,-153.0,0.00052224,60]
[358232938,1744859448509,-153.0,0.00052224,60]
[358232939,1744859448519,-157.8530865,0.00052228,47]
[358232940,1744859448530,-6424.23440501,0.00052258,15]
[358232941,1744859448540,-1608.58092417,0.00052275,15]
[358232942,1744859448551,-150.0,0.00052277,7]
[358232943,1744859448561,-150.0,0.00052289,7]
[358232944,1744859448572,-150.0,0.00052295,7]
[358232945,1744859448582,-1057.0,0.000523,7]
[358232946,1744859448592,-228143.836612,0.00052308,4]
[358232947,1744859448603,-500.0,0.00052317,120]
[358232948,1744859448614,-500.0,0.00052319,120]
[358232949,1744859448625,-7786.82292429,0.0005232,120]
[358232950,1744859448635,-500.0,0.00052327,120]
[358232951,1744859448645,-500.0,0.00052327,120]
[358232952,1744859448655,-201.55748131,0.00052327,120]
[358232953,1744859448665,-300.0,0.00052327,30]
[358232954,1744859448675,-500.0,0.00052328,120]
[358232955,1744859448686,-503.18,0.00052328,120]
[358232956,1744859448696,-500.0,0.00052328,120]
[358232957,1744859448706,-532.60572352,0.00052328,120]
[358232958,1744859448716,-500.0,0.00052328,120]
[358232959,1744859448727,-739.27,0.00052328,120]
[358232960,1744859448739,-135492.64,0.00052328,7]
[358232961,1744859448749,-500.0,0.00052328,120]
[358232962,1744859448760,-617.26,0.00052328,120]
[358232963,1744859448771,-1532.67,0.00052328,120]
[358232964,1744859448782,-507.73,0.00052328,120]
[358232965,1744859448793,-500.0,0.00052328,120]
[358232966,1744859448804,-500.0,0.00052328,120]
[358232967,1744859448819,-500.0,0.00052328,120]
[358232968,1744859448829,-538.83172847,0.00052328,120]
[358232969,1744859448839,-500.0,0.00052328,120]
[358232970,1744859448851,-500.0,0.00052328,120]
[358232971,1744859448862,-569.62,0.00052328,120]
[358232972,1744859448873,-500.0,0.00052328,120]
[358232973,1744859448884,-500.0,0.00052328,120]
[358232974,1744859448895,-500.0,0.00052328,120]
[358232975,1744859448906,-500.0,0.00052328,120]
[358232976,1744859448916,-500.0,0.00052328,120]
[358232977,1744859448926,-500.0,0.00052328,120]
[358232978,1744859448937,-1004.15,0.00052328,120]
[358232979,1744859448947,-500.07782383,0.00052328,120]
[358232980,1744859448958,-980.75,0.00052328,120]
[358232981,1744859448967,-552.2,0.00052328,120]
[358232982,1744859448977,-500.0,0.00052328,120]
[358232983,1744859448987,-500.0,0.00052328,120]
[358232984,1744859448998,-500.0,0.00052328,120]
[358232985,1744859449008,-500.0,0.00052328,120]
[358232986,1744859449018,-500.0,0.00052328,120]
[358232987,1744859449028,-500.0,0.00052328,120]
[358232988,1744859449038,-500.0,0.00052328,120]
[358232989,1744859449048,-500.0,0.00052328,120]
[358232990,1744859449059,-616.69,0.00052328,120]
[358232991,1744859449069,-500.0,0.00052328,120]
[358232992,1744859449079,-500.0,0.00052328,120]
[358232993,1744859449090,-500.0,0.00052328,120]
[358232994,1744859449388,-517.39,0.00052328,120]
[358232995,1744859449398,-500.0,0.00052328,120]
[358232996,1744859449408,-500.0,0.00052328,120]
[358232997,1744859449418,-500.0,0.00052328,120]
[358232998,1744859449428,-524.8,0.00052328,120]
[358232999,1744859449438,-500.0,0.00052328,120]
[358233000,1744859449448,-1921.23,0.00052328,120]
[358233001,1744859449458,-636.52094182,0.00052328,120]
[358233002,1744859449468,-500.0,0.00052328,120]
[358233003,1744859449479,-500.0,0.00052328,120]
[358233004,1744859449490,-500.0,0.00052328,120]
[358233005,1744859449499,-500.0,0.00052328,120]
[358233006,1744859449509,-1874.46,0.00052328,120]
[358233007,1744859449519,-611.83,0.00052328,120]
[358233008,1744859449529,-500.0,0.00052328,120]
[358233009,1744859449539,-500.0,0.00052328,120]
[358233010,1744859449548,-500.0,0.00052328,120]
[358233011,1744859449557,-577.75,0.00052328,120]
[358233012,1744859449567,-500.0,0.00052328,120]
[358233013,1744859449576,-1466.41,0.00052328,120]
[358233014,1744859449586,-1968.11,0.00052328,120]
[358233015,1744859449595,-500.0,0.00052328,120]
[358233016,1744859449604,-500.0,0.00052328,120]
[358233017,1744859449614,-500.0,0.00052328,120]
[358233018,1744859449623,-567.25839854,0.00052328,120]
[358233019,1744859449633,-500.0,0.00052328,120]
[358233020,1744859449642,-500.0,0.00052328,120]
[358233021,1744859449651,-500.0,0.00052328,120]
[358233022,1744859449661,-500.0,0.00052328,120]
[358233023,1744859449671,-500.0,0.00052328,120]
[358233024,1744859449680,-500.0,0.00052328,120]
[358233025,1744859449689,-500.0,0.00052328,120]
[358233026,1744859449699,-500.0,0.00052328,120]
[358233027,1744859449708,-500.0,0.00052328,120]
[358233028,1744859449718,-500.0,0.00052328,120]
[358233029,1744859449728,-267.672926,0.00052328,120]
[358233030,1744859449738,-2152.01,0.00052328,120]
[358233031,1744859449748,-588.20280813,0.00052328,120]
[358233032,1744859449758,-500.0,0.00052328,120]
[358233033,1744859449767,-500.0,0.00052328,120]
[358233034,1744859449777,-608.48,0.00052328,120]
[358233035,1744859449787,-500.0,0.00052328,120]
[358233036,1744859449796,-954.81,0.00052328,120]
[358233037,1744859449807,-1780.3,0.00052328,120]
[358233038,1744859449819,-634.18,0.00052328,120]
[358233039,1744859449828,-500.0,0.00052328,120]
[358233040,1744859449838,-740.09,0.00052328,120]
[358233041,1744859449847,-500.0,0.00052328,120]
[358233042,1744859449858,-1202.87,0.00052328,35]
[358233043,1744859449870,-562.208194,0.00052328,120]
[358233044,1744859449879,-1063.8,0.00052328,120]
[358233045,1744859449889,-2373.97,0.00052328,120]
[358233046,1744859449899,-500.0,0.00052328,120]
[358233047,1744859449909,-1292.71,0.00052328,120]
[358233048,1744859449919,-500.0,0.00052328,120]
[358233049,1744859449928,-843.29,0.00052328,120]
[358233050,1744859449937,-500.0,0.00052328,120]